bitfinex/quotes_BTCUSD_20250619
["timestamp","ask_amount","ask_price","bid_price","bid_amount"]
[1750363669912,1.09562987,104410.0,104400.0,0.29548338]
[1750363671211,0.89449972,104410.0,104400.0,0.30506128]
[1750363671705,1.08605225,104410.0,104400.0,0.30506128]
[1750363674618,0.38893487,104410.0,104400.0,0.40034021]
[1750363674846,0.36015378,104410.0,104400.0,0.49561006]
[1750363675285,0.341,104410.0,104400.0,0.49561006]
[1750363675498,0.35057698,104410.0,104400.0,0.49561006]
[1750363675733,0.36015414,104410.0,104400.0,0.49561006]
[1750363677635,0.35915414,104410.0,104400.0,0.49561006]
[1750363678045,0.34957698,104410.0,104400.0,0.49561006]
[1750363678269,0.35915414,104410.0,104400.0,0.49561006]
[1750363678488,0.34957698,104410.0,104400.0,0.49561006]
[1750363678708,0.35915414,104410.0,104400.0,0.49561006]
[1750363679153,0.34957698,104410.0,104400.0,0.49561006]
[1750363679393,0.35915405,104410.0,104400.0,0.49561006]
[1750363680166,0.3687313,104410.0,104400.0,0.49561006]
[1750363680578,0.35915405,104410.0,104400.0,0.49561006]
[1750363681047,0.35915414,104410.0,104400.0,0.49561006]
[1750363681783,0.34957698,104410.0,104400.0,0.49561006]
[1750363682266,0.35915414,104410.0,104400.0,0.49561006]
[1750363682919,0.34,104410.0,104400.0,1.03123646]
[1750363683144,0.02415695,104430.0,104420.0,0.28286328]
[1750363683360,0.7494068,104430.0,104420.0,0.43778338]
[1750363683575,0.77238038,104430.0,104420.0,0.42820713]
[1750363683812,1.11238038,104430.0,104420.0,0.41863079]
[1750363684278,0.60681856,104430.0,104420.0,0.40905418]
[1750363684501,1.10280496,104430.0,104420.0,0.41863079]
[1750363684725,1.10380496,104430.0,104420.0,0.41863079]
[1750363684960,1.10380496,104430.0,104420.0,0.42820722]
[1750363685242,1.10380496,104430.0,104420.0,0.41863079]
[1750363685691,1.10380496,104430.0,104420.0,0.42820731]
[1750363685915,1.10380496,104430.0,104420.0,0.43778374]
[1750363686419,1.10380496,104430.0,104420.0,0.40905418]
[1750363686641,1.09422926,104430.0,104420.0,0.40905418]
[1750363686856,1.08525565,104430.0,104420.0,0.40905418]
[1750363687290,1.08525565,104430.0,104420.0,0.41863079]
[1750363687506,1.09483144,104430.0,104420.0,0.42820731]
[1750363687740,1.07185786,104430.0,104420.0,0.41863079]
[1750363688601,1.07185786,104430.0,104420.0,0.41859079]
[1750363689958,1.09480539,104430.0,104420.0,0.42816731]
[1750363690232,1.09480539,104430.0,104420.0,0.40901418]
[1750363690449,1.06228207,104430.0,104420.0,0.40901418]
[1750363690671,0.83224235,104430.0,104420.0,0.41859079]
[1750363690900,1.0333337,104430.0,104420.0,0.42816722]
[1750363692061,1.0333337,104430.0,104420.0,0.42816731]
[1750363692316,1.0333337,104430.0,104420.0,0.41859079]
[1750363692942,1.03311234,104430.0,104420.0,0.41859079]
[1750363693180,1.03311234,104430.0,104420.0,0.0626]
[1750363693423,1.59404609,104430.0,104420.0,0.21744]
[1750363693914,1.68931594,104430.0,104420.0,0.21744]
[1750363695101,1.6894313,104430.0,104420.0,0.21744]
[1750363695356,1.59416145,104430.0,104420.0,0.21744]
[1750363696540,1.60312456,104430.0,104420.0,0.21744]
[1750363697025,0.2011107,104420.0,104410.0,0.0637]
[1750363697260,0.69693342,104420.0,104410.0,0.41009253]
[1750363698213,0.69793342,104420.0,104410.0,0.41967015]
[1750363699135,0.69793342,104420.0,104410.0,0.43882503]
[1750363700650,0.69793342,104420.0,104410.0,0.44840228]
[1750363700885,0.69793342,104420.0,104410.0,0.43882503]
[1750363703895,0.69793342,104420.0,104410.0,0.44840228]
[1750363704117,0.69793342,104420.0,104410.0,0.45797944]
[1750363704344,0.72666298,104420.0,104410.0,0.45797889]
[1750363705223,0.52555137,104420.0,104410.0,0.45797834]
[1750363705452,0.02972865,104420.0,104410.0,0.53642521]
[1750363705941,0.52555109,104420.0,104410.0,0.53642521]
[1750363706168,0.02015203,104420.0,104410.0,0.70794908]
[1750363706402,0.53512752,104420.0,104410.0,0.63170414]
[1750363707273,0.7362384,104420.0,104410.0,0.61255046]
[1750363707276,0.72666252,104420.0,104410.0,0.2744075]
[1750363707502,0.72666252,104420.0,104410.0,0.44844191]
[1750363707948,0.72666252,104420.0,104410.0,0.43886475]
[1750363708635,0.53512825,104420.0,104410.0,0.44844182]
[1750363708861,0.72666243,104420.0,104410.0,0.43886475]
[1750363709771,0.72666243,104420.0,104410.0,0.4292875]
[1750363709992,0.72666243,104420.0,104410.0,0.44844173]
[1750363710223,0.73623913,104420.0,104410.0,0.44844173]
[1750363712464,0.72666298,104420.0,104410.0,0.43886466]
[1750363716293,0.73049167,104420.0,104410.0,0.41971015]
[1750363716530,0.20114574,104410.0,104400.0,0.0645]
[1750363716751,0.55072677,104400.0,104390.0,0.21098904]
[1750363716971,1.54289053,104400.0,104390.0,0.36594904]
[1750363717473,1.53331272,104400.0,104390.0,0.20141001]
[1750363717733,1.52373464,104400.0,104390.0,0.35637001]
[1750363717951,1.52373464,104400.0,104390.0,0.15520132]
[1750363718440,1.52373464,104400.0,104390.0,0.34679055]
[1750363718652,1.52373464,104400.0,104390.0,0.35837001]
[1750363718866,0.53157088,104400.0,104390.0,0.15720132]
[1750363719105,1.02763378,104400.0,104390.0,0.15720132]
[1750363719822,1.02763378,104400.0,104390.0,0.22070132]
[1750363720014,1.02763378,104400.0,104390.0,0.22170132]
[1750363724107,1.02763378,104400.0,104390.0,0.41329055]
[1750363724291,1.02763378,104400.0,104390.0,0.22170132]
[1750363724509,1.02763378,104400.0,104390.0,0.41329055]
[1750363724729,1.02763378,104400.0,104390.0,0.42286982]
[1750363725651,0.84564126,104400.0,104390.0,0.432449]
[1750363725873,0.34957735,104410.0,104400.0,0.22030567]
[1750363726102,0.78986011,104430.0,104400.0,0.22030567]
[1750363726103,0.68758011,104430.0,104410.0,0.23282997]
[1750363726344,0.68758011,104430.0,104420.0,0.0635]
[1750363726345,0.72619015,104430.0,104420.0,0.0635]
[1750363726562,0.71947157,104430.0,104420.0,0.26461088]
[1750363726780,1.05947157,104430.0,104420.0,0.27418749]
[1750363726998,1.02758011,104430.0,104420.0,0.0730767]
[1750363727211,1.02858011,104430.0,104420.0,0.0730767]
[1750363727656,1.02758011,104430.0,104420.0,0.26461088]
[1750363727879,1.02858011,104430.0,104420.0,0.26461088]
[1750363729467,1.02858011,104430.0,104420.0,0.0730767]
[1750363729693,1.02858011,104430.0,104420.0,0.26461088]
[1750363730848,0.78390697,104430.0,104420.0,0.26461088]
[1750363731070,0.97545018,104430.0,104420.0,0.26461088]
[1750363731319,0.97545018,104430.0,104420.0,0.0730767]
[1750363731530,0.97545018,104430.0,104420.0,0.0635]
[1750363731737,0.97545018,104430.0,104420.0,0.26461088]
[1750363731944,0.97545018,104430.0,104420.0,0.2741874]
[1750363732862,0.97545018,104430.0,104420.0,0.33814016]
[1750363733321,0.97545018,104430.0,104420.0,0.35729311]
[1750363733550,0.97545018,104430.0,104420.0,0.34771677]
[1750363734035,0.97545018,104430.0,104420.0,0.35729329]
[1750363734754,0.97545018,104430.0,104420.0,0.28376401]
[1750363735241,0.97545018,104430.0,104420.0,0.27418749]
[1750363735466,0.97545018,104430.0,104420.0,0.26461088]
[1750363737246,1.47151308,104430.0,104420.0,0.26461088]
[1750363737960,1.47151308,104430.0,104420.0,0.0730767]
[1750363738697,1.13151308,104430.0,104420.0,0.0730767]
[1750363738917,1.47151308,104430.0,104420.0,0.26461088]
[1750363739656,1.47151308,104430.0,104420.0,0.27418749]
[1750363739866,1.47151308,104430.0,104420.0,0.26461088]
[1750363740618,1.47151308,104430.0,104420.0,0.27418749]
[1750363740838,1.47151308,104430.0,104420.0,0.28376383]
[1750363741049,1.02860611,104430.0,104420.0,0.28376383]
[1750363741476,1.02860611,104430.0,104420.0,0.26461088]
[1750363741695,1.52466901,104430.0,104420.0,0.27418749]
[1750363742317,1.52466901,104430.0,104420.0,0.34771678]
[1750363742946,1.52466901,104430.0,104420.0,0.33814017]
[1750363743158,1.52466901,104430.0,104420.0,0.34771678]
[1750363743781,1.52466901,104430.0,104420.0,0.33814017]
[1750363744558,1.52466901,104430.0,104420.0,0.14660599]
[1750363744781,1.52466901,104430.0,104420.0,0.0635]
[1750363750235,1.54760312,104430.0,104420.0,0.0635]
[1750363751042,1.55656499,104430.0,104420.0,0.0635]
[1750363753225,1.55656963,104430.0,104420.0,0.0635]
[1750363754131,1.56330278,104430.0,104420.0,0.0635]
[1750363755863,1.56330293,104430.0,104420.0,0.0635]
[1750363757021,1.56282909,104430.0,104420.0,0.0635]
[1750363758612,1.56283137,104430.0,104420.0,0.0635]
[1750363758862,0.20112681,104420.0,104410.0,0.21996]
[1750363759090,1.22469313,104420.0,104410.0,0.21996]
[1750363759321,1.23142823,104420.0,104410.0,0.21996]
[1750363759572,1.22469313,104420.0,104410.0,0.41151253]
[1750363759805,1.22469313,104420.0,104410.0,0.42108997]
[1750363760039,1.21571288,104420.0,104410.0,0.42108997]
[1750363760861,1.21571288,104420.0,104410.0,0.43066722]
[1750363761050,0.69696188,104420.0,104410.0,0.43066722]
[1750363761473,0.51881794,104420.0,104410.0,0.43066722]
[1750363761691,0.68738527,104420.0,104410.0,0.43066722]
[1750363761898,0.69796188,104420.0,104410.0,0.42108997]
[1750363763203,0.69796188,104420.0,104410.0,0.43066732]
[1750363763700,0.69796188,104420.0,104410.0,0.44024457]
[1750363764344,0.70753831,104420.0,104410.0,0.44024457]
[1750363765036,0.70753831,104420.0,104410.0,0.44982173]
[1750363765284,0.71711501,104420.0,104410.0,0.44982173]
[1750363765492,0.71711501,104420.0,104410.0,0.4593988]
[1750363766711,0.71711501,104420.0,104410.0,0.45939834]
[1750363766928,0.71711501,104420.0,104410.0,0.43066713]
[1750363767198,0.52556481,104420.0,104410.0,0.44024411]
[1750363767419,0.71709899,104420.0,104410.0,0.43066713]
[1750363768110,0.71709899,104420.0,104410.0,0.42109015]
[1750363768333,0.81733326,104420.0,104410.0,0.21988]
[1750363768615,0.84611226,104420.0,104410.0,0.18798]
[1750363768842,0.84611226,104420.0,104410.0,0.15508]
[1750363769063,0.85508882,104420.0,104410.0,0.34663253]
[1750363769283,0.75084241,104420.0,104410.0,0.41931015]
[1750363769740,0.75084241,104420.0,104410.0,0.43846512]
[1750363769985,0.73630156,104420.0,104410.0,0.29296237]
[1750363770195,0.73630156,104420.0,104410.0,0.41931006]
[1750363770879,0.73630156,104420.0,104410.0,0.4288875]
[1750363771574,0.75928236,104420.0,104410.0,0.4288875]
[1750363775437,0.85455221,104420.0,104410.0,0.41931006]
[1750363776134,0.8449756,104420.0,104410.0,0.40973253]
[1750363776642,0.75868318,104420.0,104410.0,0.42888768]
[1750363776869,0.75868318,104420.0,104410.0,0.43846512]
[1750363779113,0.77322403,104420.0,104410.0,0.0631]
[1750363779342,0.77322403,104420.0,104410.0,0.40973253]
[1750363779790,0.77322403,104420.0,104410.0,0.41931015]
[1750363780250,0.86849388,104420.0,104410.0,0.21818]
[1750363780691,0.86849388,104420.0,104410.0,0.40973253]
[1750363780926,0.77322403,104420.0,104410.0,0.41931006]
[1750363781152,0.77322414,104420.0,104410.0,0.41931006]
[1750363782473,0.77322414,104420.0,104410.0,0.40973253]
[1750363782732,0.76364744,104420.0,104410.0,0.40973253]
[1750363783834,0.76364744,104420.0,104410.0,0.21818]
[1750363785270,0.5603054,104400.0,104390.0,0.34951074]
[1750363785500,1.55197554,104400.0,104390.0,0.59978995]
[1750363785725,1.54239764,104400.0,104390.0,0.03234132]
[1750363785948,1.53281947,104400.0,104390.0,0.22048132]
[1750363786651,1.53281947,104400.0,104390.0,0.41207055]
[1750363786871,1.53281947,104400.0,104390.0,0.43122937]
[1750363787093,1.53281947,104400.0,104390.0,0.43222937]
[1750363787314,1.53281947,104400.0,104390.0,0.27718937]
[1750363787551,1.53281947,104400.0,104390.0,0.43530937]
[1750363787740,1.53281947,104400.0,104390.0,0.43230937]
[1750363788003,1.53281947,104400.0,104390.0,0.42273001]
[1750363788238,1.53281947,104400.0,104390.0,0.42373001]
[1750363788460,1.53281947,104400.0,104390.0,0.42273001]
[1750363788461,1.31904316,104400.0,104390.0,0.42273001]
[1750363788684,1.51061404,104400.0,104390.0,0.42273001]
[1750363789652,1.52019249,104400.0,104390.0,0.42273001]
[1750363790787,1.52019249,104400.0,104390.0,0.26761001]
[1750363791003,1.52019249,104400.0,104390.0,0.22152132]
[1750363791228,1.54897549,104400.0,104390.0,0.22152132]
[1750363799645,1.54897549,104400.0,104390.0,0.41311055]
[1750363800063,1.54897549,104400.0,104390.0,0.22152132]
[1750363801286,1.54946085,104400.0,104390.0,0.43226937]
[1750363802897,1.54946085,104400.0,104390.0,0.06644132]
[1750363803114,1.58215428,104400.0,104390.0,0.18930132]
[1750363803341,1.54946085,104400.0,104390.0,0.18930132]
[1750363803798,1.54946085,104400.0,104390.0,0.21960132]
[1750363806587,1.54946085,104400.0,104390.0,0.21964132]
[1750363807410,1.54946085,104400.0,104390.0,0.48280229]
[1750363807632,1.54946085,104400.0,104390.0,0.43038919]
[1750363808955,1.5398824,104400.0,104390.0,0.42081001]
[1750363810257,1.5398824,104400.0,104390.0,0.22922078]
[1750363810481,1.5398824,104400.0,104390.0,0.42081001]
[1750363810720,1.21250938,104400.0,104390.0,0.42081001]
[1750363810945,0.71640996,104400.0,104390.0,0.42081001]
[1750363812350,1.21246604,104400.0,104390.0,0.42081001]
[1750363813815,1.21246604,104400.0,104390.0,0.50100325]
[1750363814018,0.71640996,104400.0,104390.0,0.50100325]
[1750363815670,0.71640996,104400.0,104390.0,0.49142398]
[1750363816957,0.71640996,104400.0,104390.0,0.50100334]
[1750363817213,0.71640996,104400.0,104390.0,0.51058261]
[1750363819077,0.71640996,104400.0,104390.0,0.50100334]
[1750363819294,0.71640996,104400.0,104390.0,0.48184452]
[1750363819520,0.71640996,104400.0,104390.0,0.50100334]
[1750363819785,0.71640996,104400.0,104390.0,0.51058261]
[1750363820021,0.71640996,104400.0,104390.0,0.50100334]
[1750363820756,1.07938918,104400.0,104390.0,0.50100334]
[1750363821027,1.07938918,104400.0,104390.0,0.22922078]
[1750363821222,1.57544526,104400.0,104390.0,0.42081001]
[1750363821440,1.57544526,104400.0,104390.0,0.43038937]
[1750363821665,1.07938918,104400.0,104390.0,0.43038937]
[1750363823393,1.07938918,104400.0,104390.0,0.42081001]
[1750363823628,1.57544526,104400.0,104390.0,0.42081001]
[1750363824473,1.57544526,104400.0,104390.0,0.43038937]
[1750363826009,1.57544526,104400.0,104390.0,0.42081001]
[1750363826236,1.54666226,104400.0,104390.0,0.42081001]
[1750363826689,1.33211216,104400.0,104390.0,0.42081001]
[1750363826921,1.52368304,104400.0,104390.0,0.22922078]
[1750363827145,1.52368304,104400.0,104390.0,0.21952132]
[1750363827809,1.52368304,104400.0,104390.0,0.41111055]
[1750363828017,1.52368304,104400.0,104390.0,0.42069001]
[1750363828244,1.52368304,104400.0,104390.0,0.43026937]
[1750363828750,1.52368304,104400.0,104390.0,0.42069001]
[1750363832949,1.5237181,104400.0,104390.0,0.42069001]
[1750363833375,1.5237181,104400.0,104390.0,0.21952132]
[1750363833590,1.1837181,104400.0,104390.0,0.41111055]
[1750363834068,1.1837181,104400.0,104390.0,0.42069001]
[1750363834879,1.1837181,104400.0,104390.0,0.43026937]
[1750363835623,1.1837181,104400.0,104390.0,0.50182925]
[1750363835853,1.1837181,104400.0,104390.0,0.5209877]
[1750363836301,1.20287427,104400.0,104390.0,0.53056679]
[1750363836520,1.20287427,104400.0,104390.0,0.62584507]
[1750363836521,0.51522941,104400.0,104390.0,0.62584507]
[1750363836753,0.01915478,104410.0,104400.0,0.28460567]
[1750363836982,0.00957698,104410.0,104400.0,0.37601504]
[1750363837206,0.51522766,104410.0,104400.0,0.47129397]
[1750363837452,0.52480491,104410.0,104400.0,0.47129397]
[1750363837694,0.53438226,104410.0,104400.0,0.47129397]
[1750363838366,0.53538226,104410.0,104400.0,0.47129397]
[1750363838585,0.53638226,104410.0,104400.0,0.47129397]
[1750363839038,0.5459597,104410.0,104400.0,0.47129397]
[1750363839476,0.73751223,104410.0,104400.0,0.47129397]
[1750363839698,0.8859597,104410.0,104400.0,0.47129397]
[1750363840136,1.07751278,104410.0,104400.0,0.47129397]
[1750363840410,0.88596025,104410.0,104400.0,0.47129397]
[1750363841086,1.07751333,104410.0,104400.0,0.47129415]
[1750363841324,1.5448549,104410.0,104400.0,0.26544942]
[1750363841545,1.5448549,104410.0,104400.0,0.42990787]
[1750363842961,1.53527737,104410.0,104400.0,0.43948623]
[1750363843630,1.55824219,104410.0,104400.0,0.43948623]
[1750363845656,0.56609497,104410.0,104400.0,0.43948623]
[1750363845878,1.55824219,104410.0,104400.0,0.51168965]
[1750363848163,1.06216858,104410.0,104400.0,0.52126773]
[1750363848826,1.06793553,104410.0,104400.0,0.53084563]
[1750363849073,1.07751315,104410.0,104400.0,0.53084563]
[1750363849291,1.06793608,104410.0,104400.0,0.52126773]
[1750363849497,0.8572284,104410.0,104400.0,0.53084508]
[1750363849710,1.05835855,104410.0,104400.0,0.53084508]
[1750363850686,1.05835855,104410.0,104400.0,0.52126718]
[1750363851329,0.86680593,104410.0,104400.0,0.52130718]
[1750363851556,1.06793608,104410.0,104400.0,0.51172919]
[1750363851763,1.06793608,104410.0,104400.0,0.50215111]
[1750363852009,1.05835873,104410.0,104400.0,0.50215111]
[1750363852224,1.05835873,104410.0,104400.0,0.51172937]
[1750363852864,1.04878129,104410.0,104400.0,0.50215111]
[1750363853072,1.03920376,104410.0,104400.0,0.50215111]
[1750363853504,1.03920376,104410.0,104400.0,0.51172928]
[1750363854174,1.03920376,104410.0,104400.0,0.50215111]
[1750363854720,1.03920376,104410.0,104400.0,0.51172928]
[1750363855147,1.02962614,104410.0,104400.0,0.42036933]
[1750363855367,1.52569975,104410.0,104400.0,0.42036933]
[1750363855846,1.52569975,104410.0,104400.0,0.21922]
[1750363857414,1.52569975,104410.0,104400.0,0.41079088]
[1750363857631,1.52569975,104410.0,104400.0,0.42036942]
[1750363857841,1.52569975,104410.0,104400.0,0.49257697]
[1750363858782,1.54943215,104410.0,104400.0,0.52131186]
[1750363859219,1.54943215,104410.0,104400.0,0.51173378]
[1750363860332,1.54943215,104410.0,104400.0,0.52131204]
[1750363860573,1.04378092,104410.0,104400.0,0.52131204]
[1750363860801,1.04378092,104410.0,104400.0,0.53089021]
[1750363861047,1.04378092,104410.0,104400.0,0.53088975]
[1750363861485,1.04378092,104410.0,104400.0,0.52131167]
[1750363862819,1.04378092,104410.0,104400.0,0.53088975]
[1750363863737,0.83307361,104410.0,104400.0,0.53088975]
[1750363863974,0.22024293,104430.0,104420.0,0.27388731]
[1750363864212,0.55672616,104430.0,104420.0,0.49489216]
[1750363864456,0.49607361,104430.0,104420.0,0.59017109]
[1750363864670,0.84564876,104430.0,104420.0,0.59017109]
[1750363864900,0.52443571,104430.0,104420.0,0.59017109]
[1750363865115,0.86443562,104430.0,104420.0,0.59017109]
[1750363865330,0.52543562,104430.0,104420.0,0.59017109]
[1750363865551,0.86543562,104430.0,104420.0,0.59017109]
[1750363866235,0.86643562,104430.0,104420.0,0.59017109]
[1750363866667,0.86543562,104430.0,104420.0,0.59017109]
[1750363866879,0.86643562,104430.0,104420.0,0.59017109]
[1750363867103,0.87601122,104430.0,104420.0,0.59017109]
[1750363867561,0.87501122,104430.0,104420.0,0.59017109]
[1750363867780,0.87601122,104430.0,104420.0,0.59017109]
[1750363868234,0.86643562,104430.0,104420.0,0.59017109]
[1750363868455,0.87601113,104430.0,104420.0,0.59017109]
[1750363869086,0.88558673,104430.0,104420.0,0.59017109]
[1750363870695,0.86643562,104430.0,104420.0,0.59017109]
[1750363871249,0.87601122,104430.0,104420.0,0.59017109]
[1750363872963,0.64505794,104430.0,104420.0,0.59017109]
[1750363873222,0.85572481,104430.0,104420.0,0.58059503]
[1750363873476,0.86529996,104430.0,104420.0,0.59974743]
[1750363873742,0.67378412,104430.0,104420.0,0.59974679]
[1750363874384,0.86529996,104430.0,104420.0,0.59974679]
[1750363874807,0.67378412,104430.0,104420.0,0.59974679]
[1750363875012,0.66420833,104430.0,104420.0,0.59974679]
[1750363876398,0.64505731,104430.0,104420.0,0.59974679]
[1750363876613,0.65463282,104430.0,104420.0,0.59974679]
[1750363877044,0.66420842,104430.0,104420.0,0.59974679]
[1750363880630,0.65463282,104430.0,104420.0,0.59974679]
[1750363881270,0.66420842,104430.0,104420.0,0.59974679]
[1750363886554,0.3803015,104430.0,104420.0,0.59974679]
[1750363886763,0.87601131,104430.0,104420.0,0.59974679]
[1750363886980,0.87603556,104430.0,104420.0,0.59974679]
[1750363888060,0.86645987,104430.0,104420.0,0.59974679]
[1750363888275,0.87603538,104430.0,104420.0,0.59974679]
[1750363888718,0.86645987,104430.0,104420.0,0.59974679]
[1750363888937,0.87603538,104430.0,104420.0,0.59974679]
[1750363889197,0.88561098,104430.0,104420.0,0.59974679]
[1750363890276,0.87603538,104430.0,104420.0,0.59974679]
[1750363891906,0.85688445,104430.0,104420.0,0.59974679]
[1750363892137,0.83773406,104430.0,104420.0,0.59974679]
[1750363893455,0.84730939,104430.0,104420.0,0.59974679]
[1750363893932,0.84730939,104430.0,104420.0,1.09548085]
[1750363893933,0.342,104430.0,104420.0,1.09548085]
[1750363894164,0.002,104430.0,104420.0,1.59121491]
[1750363896469,0.002,104430.0,104420.0,1.09548085]
[1750363896734,0.001,104430.0,104420.0,1.09548085]
[1750363897029,0.001,104430.0,104420.0,1.09524095]
[1750363897250,0.001,104430.0,104420.0,1.09824095]
[1750363897479,0.001,104430.0,104420.0,0.60274679]
[1750363897704,0.001,104430.0,104420.0,1.09824095]
[1750363897927,0.87383833,104450.0,104440.0,0.28252102]
[1750363898145,0.87383833,104450.0,104440.0,0.582077]
[1750363899051,0.88341219,104450.0,104440.0,0.582077]
[1750363899245,0.87430969,104450.0,104440.0,0.584077]
[1750363899464,1.0657895,104450.0,104440.0,0.57450287]
[1750363899686,1.0657895,104450.0,104440.0,0.58407737]
[1750363899928,1.0657895,104450.0,104440.0,0.59365169]
[1750363901010,0.86473647,104450.0,104440.0,0.60322592]
[1750363902581,1.06578959,104450.0,104440.0,0.60322592]
[1750363902802,1.06578959,104450.0,104440.0,0.59365169]
[1750363902803,1.06078959,104450.0,104440.0,0.59365169]
[1750363904016,0.72573959,104450.0,104440.0,0.59365169]
[1750363906017,0.53426033,104450.0,104440.0,0.59365169]
[1750363906239,0.53426033,104450.0,104440.0,0.60322592]
[1750363906505,0.5151127,104450.0,104440.0,0.60322592]
[1750363906716,0.52468647,104450.0,104440.0,0.60322592]
[1750363907725,0.51511224,104450.0,104440.0,0.60322592]
[1750363908434,0.01961789,104450.0,104440.0,0.60322592]
[1750363908665,0.52468564,104450.0,104440.0,0.60322592]
[1750363908895,0.51511205,104450.0,104440.0,0.60322592]
[1750363909112,0.51511196,104450.0,104440.0,0.60322592]
[1750363909777,0.50553865,104450.0,104440.0,0.60322592]
[1750363909995,0.01004449,104450.0,104440.0,0.60322592]
[1750363910186,0.0196178,104450.0,104440.0,0.60322592]
[1750363910439,0.02919111,104450.0,104440.0,0.60322592]
[1750363910660,0.02919102,104450.0,104440.0,0.60322592]
[1750363911108,0.01961771,104450.0,104440.0,0.60322592]
[1750363911345,0.02919111,104450.0,104440.0,0.60322592]
[1750363912288,0.00047136,104450.0,104440.0,0.60322592]
[1750363912542,0.50553874,104450.0,104440.0,0.60322592]
[1750363912992,0.51511214,104450.0,104440.0,0.60322592]
[1750363913690,0.50553874,104450.0,104440.0,0.60322592]
[1750363915471,0.49596552,104450.0,104440.0,0.60322592]
[1750363915709,0.00047136,104450.0,104440.0,0.60322592]
[1750363917612,0.00047136,104450.0,104440.0,1.09872008]
[1750363919229,0.00047136,104450.0,104440.0,1.12751717]
[1750363919701,0.00047136,104450.0,104440.0,1.09872008]
[1750363920416,0.00047136,104450.0,104440.0,0.60322592]
[1750363923145,0.00047136,104450.0,104440.0,1.09872008]
[1750363923881,0.00047136,104450.0,104440.0,1.12782287]
[1750363924804,0.00047136,104450.0,104440.0,1.13165787]
[1750363925513,0.00047136,104450.0,104440.0,1.13065787]
[1750363927082,0.00047136,104450.0,104440.0,1.13365787]
[1750363927608,0.00047136,104450.0,104440.0,1.13265787]
[1750363927788,0.86425594,104480.0,104470.0,0.22015777]
[1750363927789,0.51463556,104480.0,104470.0,0.22015777]
[1750363928017,0.52434717,104480.0,104470.0,0.49247953]
[1750363928693,0.52434708,104480.0,104470.0,0.49247953]
[1750363929636,0.54834422,104480.0,104470.0,0.49247953]
[1750363930556,0.88834422,104480.0,104470.0,0.49247953]
[1750363930777,0.88934422,104480.0,104470.0,0.49247953]
[1750363931877,1.09033952,104480.0,104470.0,0.49247962]
[1750363932099,1.13509201,104480.0,104470.0,0.38762931]
[1750363932322,1.16737386,104480.0,104470.0,0.37805737]
[1750363932831,1.12532792,104480.0,104470.0,0.38762931]
[1750363934817,1.11575708,104480.0,104470.0,0.17704283]
[1750363936163,1.05205708,104480.0,104470.0,0.38762922]
[1750363936398,1.06162792,104480.0,104470.0,0.39720097]
[1750363936624,1.06162792,104480.0,104470.0,0.40677263]
[1750363936890,1.06162792,104480.0,104470.0,0.4163442]
[1750363937344,0.85106178,104480.0,104470.0,0.4163442]
[1750363937574,0.87977402,104480.0,104470.0,0.48134365]
[1750363938456,1.07119821,104480.0,104470.0,0.48134365]
[1750363938687,0.87977402,104480.0,104470.0,0.48134365]
[1750363938924,0.870203,104480.0,104470.0,0.48134365]
[1750363940996,0.87977384,104480.0,104470.0,0.48134365]
[1750363942310,0.88934486,104480.0,104470.0,0.48134365]
[1750363943198,0.87977384,104480.0,104470.0,0.48134365]
[1750363944079,0.870203,104480.0,104470.0,0.48134365]
[1750363944292,0.87977402,104480.0,104470.0,0.48134365]
[1750363944992,0.870203,104480.0,104470.0,0.48134365]
[1750363945196,0.87977384,104480.0,104470.0,0.48134365]
[1750363945409,0.87977393,104480.0,104470.0,0.48134365]
[1750363945621,0.870203,104480.0,104470.0,0.48134365]
[1750363946276,1.08076932,104480.0,104470.0,0.44894365]
[1750363946499,0.87977402,104480.0,104470.0,0.44894365]
[1750363946714,0.87977402,104480.0,104470.0,0.48154365]
[1750363947139,0.87977393,104480.0,104470.0,0.48154365]
[1750363947803,0.870203,104480.0,104470.0,0.48154365]
[1750363948244,0.87977393,104480.0,104470.0,0.48154365]
[1750363948746,0.88934495,104480.0,104470.0,0.48154365]
[1750363948989,0.89891606,104480.0,104470.0,0.48154365]
[1750363949644,1.09931266,104480.0,104470.0,0.47197217]
[1750363949896,0.0245393,104480.0,104470.0,0.65356752]
[1750363950121,0.01556762,104480.0,104470.0,1.14906168]
[1750363950355,0.01556762,104480.0,104470.0,0.65356752]
[1750363951040,0.01556762,104480.0,104470.0,1.14906168]
[1750363951270,0.00114132,104480.0,104470.0,1.14906168]
[1750363951495,0.01589907,104480.0,104470.0,0.65356752]
[1750363951732,0.00114132,104480.0,104470.0,0.65356752]
[1750363953053,0.00014132,104480.0,104470.0,0.65356752]
[1750363953495,0.00014132,104480.0,104470.0,0.65456752]
[1750363953721,0.00014132,104480.0,104470.0,0.57832258]
[1750363960646,0.00014132,104480.0,104470.0,1.07381674]
[1750363964002,0.00014132,104480.0,104470.0,1.15006168]
[1750363964736,0.00014132,104480.0,104470.0,1.20738236]
[1750363966073,0.00014132,104480.0,104470.0,1.22192321]
[1750363966324,0.00014132,104480.0,104470.0,1.37192321]
[1750363967258,0.00014132,104480.0,104470.0,0.87542905]
[1750363967498,0.00014132,104480.0,104470.0,1.37192321]
[1750363967737,0.00014132,104480.0,104470.0,1.37292321]
[1750363968222,0.00014132,104480.0,104470.0,1.51568193]
[1750363968443,0.00014132,104480.0,104470.0,1.45852759]
[1750363968663,0.00014132,104480.0,104470.0,1.8656851]
[1750363968883,0.00014132,104480.0,104470.0,1.67617425]
[1750363969133,0.00014132,104480.0,104470.0,1.87533425]
[1750363969342,0.00014132,104480.0,104470.0,1.87633425]
[1750363969579,0.00014132,104480.0,104470.0,1.87933425]
[1750363969798,0.00014132,104480.0,104470.0,1.87633425]
[1750363970250,0.00014132,104480.0,104470.0,1.87733425]
[1750363970471,0.00014132,104480.0,104470.0,1.87533425]
[1750363970697,0.00014132,104480.0,104470.0,1.87633425]
[1750363972278,0.00014132,104480.0,104470.0,2.10617425]
[1750363973388,0.00014132,104480.0,104470.0,2.1207151]
[1750363974571,0.00014132,104480.0,104470.0,2.4170151]
[1750363976408,0.00014132,104480.0,104470.0,2.4229721]
[1750363979849,0.00014132,104480.0,104470.0,3.05581459]
[1750363980182,0.00014132,104480.0,104470.0,3.33226054]
[1750363980410,5e-05,104510.0,104500.0,0.28579457]
[1750363980625,5e-05,104510.0,104500.0,1.12464301]
[1750363981526,5e-05,104510.0,104500.0,0.62914885]
[1750363981784,5e-05,104510.0,104500.0,0.6614348]
[1750363982013,5e-05,104510.0,104500.0,1.15692896]
[1750363982455,5e-05,104510.0,104500.0,1.17609896]
[1750363982681,5e-05,104510.0,104500.0,1.16092896]
[1750363983797,5e-05,104510.0,104500.0,1.16196896]
[1750363986423,5e-05,104510.0,104500.0,0.6664748]
[1750363986925,5e-05,104510.0,104500.0,0.5078748]
[1750363987142,5e-05,104510.0,104500.0,0.6663948]
[1750363988469,0.49554416,104510.0,104500.0,0.4421748]
[1750363988725,0.56761188,104510.0,104500.0,0.57140885]
[1750363988965,0.55804416,104510.0,104500.0,0.57140885]
[1750363989179,0.06255,104510.0,104500.0,0.57140885]
[1750363989421,0.55804416,104510.0,104500.0,0.57140885]